Cogmind - Beta 14 @@@ ROGUE MODE // 2024.08.10 @ 23:11:36 Player: Calasmeer Result: Destroyed by G-34 Mercenary with Small Laser Performance ------------- Evolutions (0) 0 Regions Visited (1) 200 Robots Destroyed (8) 40 Value Destroyed (211) 211 Prototype IDs (0) 0 Alien Tech Used (0) 0 Bonus (0) 0 TOTAL SCORE: 451 Bonus ------- None Cogmind --------- Core Integrity 0/250 Matter 300/300 Energy 100/100 System Corruption 2% Temperature Cool (6) Movement Core (150) Ox2 Location -10/Materials Parts ------- > --- POWER (1) -------- (None) > --- PROPULSION (2) --- (None) > --- UTILITY (2) ------ Small Storage Unit Structural Scanner > --- WEAPON (2) ------- Small Laser > --- INVENTORY (8) ---- Light Ion Engine Compact Wheel Compact Wheel Compact Wheel Signal Interpreter Small Laser Peak State ------------ > --- POWER ------------ Light Ion Engine > --- PROPULSION ------- Wheel Wheel > --- UTILITY ---------- Small Storage Unit Structural Scanner > --- WEAPON ----------- EM Pulse Gun Medium Laser > --- INVENTORY -------- Light Ion Engine Compact Wheel Compact Wheel Compact Wheel Small Laser Small Laser [Rating: 7] Favorites ----------- Power Light Ion Engine Engine Light Ion Engine Propulsion Wheel Wheel Wheel Utility Small Storage Unit Device Structural Scanner Storage Small Storage Unit Weapon EM Pulse Gun Energy Gun EM Pulse Gun Build | -11 -10 ------- Run | Yrd Mat Slots Evolved . | . . Power . | . . Propulsion . | . . Utility . | . . Weapon . | . . Parts Attached 11 | 7 4 Power 1 | 1 . Engine 1 | 1 . Core . | . . Reactor . | . . Propulsion 2 | 2 . Treads . | . . Leg . | . . Wheel 2 | 2 . Hover . | . . Flight . | . . Utility 2 | 1 1 Device 1 | . 1 Storage 1 | 1 . Processor . | . . Hackware . | . . Protection . | . . Artifact . | . . Weapon 6 | 3 3 Energy Gun 6 | 3 3 Energy Cannon . | . . Ballistic Gun . | . . Ballistic Cannon . | . . Launcher . | . . Special Weapon . | . . Impact Weapon . | . . Slashing Weapon . | . . Piercing Weapon . | . . Special Melee Weapon . | . . Unidentified Prototypes . | . . Corrupted Parts 1 | . 1 System Corruption 2 | . 2 Parts Lost 5 | . 5 Power 1 | . 1 Propulsion 2 | . 2 Utility . | . . Weapon 2 | . 2 Highest Loss Streak 5 | . 5 To Critical Strikes . | . . Average Slot Usage (%) 79 | . 79 Engine 9 | . 9 Wheel 17 | . 17 Device 10 | . 10 Storage 14 | . 14 Energy Gun 27 | . 27 Peak Build Rating 7 | 6 7 Average Rating 5 | 4 5 On Entrance 3 | . 6 Naked Turns . | . . Heaviest Build 13 | 12 13 Greatest Support 20 | 20 20 Greatest Overweight (x) 3 | 1 3 Average Overweight (x) . | . . Largest Inventory Capacity 8 | 8 8 Average Capacity 7 | 7 8 Most Carried 7 | 2 7 Average Carried 5 | . 5 Final Capacity 8 | 8 8 Final Carried 6 | 2 6 Class Distribution -------------------- 100% | Mutant Dominant Class ---------------- Mutant | -10/Materials Resources | -11 -10 ----------- Run | Yrd Mat Matter Collected 310 | 270 40 Remotely . | . . Salvage Created 249 | . 249 Parts 19 | . 19 Haulers Intercepted . | . . Recyclers Shooed . | . . Parts Field Recycled . | . . Retrieved Matter . | . . Parts Self-Destructed . | . . Prevented . | . . Kills | -11 -10 ------- Run | Yrd Mat Combat Hostiles Destroyed 6 | . 6 Guns 6 | . 6 Classes Destroyed 3 | . 3 Watcher 2 | . 2 Swarmer 2 | . 2 Grunt 4 | . 4 Best Kill Streak 5 | . 5 Combat Bots Only 5 | . 5 Max Kills in Single Turn 1 | . 1 Gunslinging . | . . Exploded . | . . Melee . | . . Uniques/NPCs Destroyed . | . . Combat | -11 -10 -------- Run | Yrd Mat Hostile Shots Fired 61 | . 61 Missed 13 | . 13 Damage Taken 602 | . 602 Core 250 | . 250 Absorbed by Shields . | . . Core Remaining (%) 100 | 100 . Volleys Fired 20 | . 20 Largest 2 | . 2 Hottest 90 | . 90 Shots Fired 38 | . 38 Gun 38 | . 38 Cannon . | . . Launcher . | . . Special . | . . Kinetic . | . . Thermal 26 | . 26 Explosive . | . . Electromagnetic 12 | . 12 Robot Hit Streak 10 | . 10 Robot Miss Streak 3 | . 3 Penetration Max . | . . Secondary Targets 1 | . 1 Max Gunslinging Chain 1 | . 1 Shots Hit Robots 28 | . 28 Core Hits 12 | . 12 Critical Kills . | . . Critical Parts Destroyed . | . . Critical Strikes 1 | . 1 Burn 1 | . 1 Melee Attacks . | . . Impact . | . . Slashing . | . . Piercing . | . . Sneak Attacks . | . . Combat Hostiles . | . . Follow-up Attacks . | . . Damage Inflicted 360 | . 360 Guns 360 | . 360 Cannons . | . . Explosions . | . . Melee . | . . Ramming . | . . Kinetic . | . . Thermal 243 | . 243 Explosive . | . . Electromagnetic 117 | . 117 Impact . | . . Slashing . | . . Piercing . | . . Highest Corruption 2 | . 2 Average Corruption 2 | . 2 Corruption Purged . | . . Corruption Blocked . | . . Effects 1 | . 1 Energy Discharges 1 | . 1 Overload Shots . | . . Overflow Damage . | . . Projectiles . | . . Explosions . | . . Melee . | . . Knockbacks . | . . Impact . | . . Kinetic . | . . Secondary . | . . Self-Inflicted Damage . | . . Shots . | . . Rammed 1 | . 1 Targets Rammed 1 | . 1 Kicked . | . . Crushed . | . . Highest Temperature 432 | . 432 Average Temperature 203 | . 203 Received Heat Transfer 321 | . 321 Effects 3 | . 3 Shutdowns 1 | . 1 Interference 2 | . 2 Siege Activations . | . . Robots Corrupted . | . . Combat Hostiles . | . . Parts Fried . | . . Impact Corruptions . | . . Robots Melted . | . . Combat Hostiles . | . . Parts Melted 3 | . 3 Heat Transferred 683 | . 683 Parts Sabotaged . | . . Parts Stolen . | . . Parts Stripped . | . . Power Chain Reactions . | . . Alert | -11 -10 ------- Run | Yrd Mat Peak Influence 276 | . 276 Initial . | . . Average 100 | . 112 Maximum Alert Level 1 | . 1 Low Security (%) 76 | 100 73 Level 1 23 | . 26 Level 2 . | . . Level 3 . | . . Level 4 . | . . Level 5 . | . . High Security . | . . Max Security . | . . Squads Dispatched 2 | . 2 Investigation . | . . Extermination . | . . Reinforcement 2 | . 2 Assault . | . . Garrison . | . . Intercept . | . . Searches Triggered . | . . Construction Impeded . | . . Haulers Reinforced . | . . Active Scanning Responses . | . . Cargo Convoy Interrupts . | . . Stealth | -11 -10 --------- Run | Yrd Mat Distress Signals . | . . Communications Jammed . | . . Distress Signals . | . . Times Spotted 15 | . 15 Peak Tracking Total 7 | . 7 Tactical Retreats 2 | . 2 Traps | -11 -10 ------- Run | Yrd Mat Traps Triggered 1 | . 1 Indirectly . | . . Trap Hack Attempts . | . . Triggered . | . . Disarmed . | . . Reprogrammed . | . . Reused . | . . Traps Extracted . | . . Installed . | . . Triggered . | . . Machines | -11 -10 ---------- Run | Yrd Mat Machines Disabled 1 | . 1 Max in Single Turn 1 | . 1 Machines Repaired . | . . Machines Dismantled . | . . Machines Sabotaged . | . . Overloaded Fab Kills . | . . Hacking | -11 -10 --------- Run | Yrd Mat Machines Accessed 3 | . 3 Terminals 2 | . 2 Fabricators . | . . Repair Stations . | . . Recycling Units 1 | . 1 Scanalyzers . | . . Garrison Access . | . . Total Hacks 5 | . 5 Successful 4 | . 4 Failed 1 | . 1 Catastrophic . | . . Database Lockouts . | . . Manual 3 | . 3 Terminals 4 | . 4 Fabricators . | . . Repair Stations . | . . Recycling Units 1 | . 1 Scanalyzers . | . . Garrison Access . | . . Terminal Hacks 1 | . 1 Locate Traps 1 | . 1 Fabricator Hacks . | . . Repair Station Hacks . | . . Recycling Unit Hacks 1 | . 1 Report Inventory 1 | . 1 Scanalyzer . | . . Garrison Access Hacks . | . . Unauthorized Hacks 2 | . 2 Terminals 2 | . 2 Botnet 2 | . 2 Fabricators . | . . Repair Stations . | . . Recycling Units . | . . Scanalyzers . | . . Garrison Access . | . . Data Cores Recovered . | . . Used . | . . Hacking Detections 2 | . 2 Full Trace Events . | . . Feedback Events . | . . Feedback Blocked . | . . Robot Schematics Acquired . | . . Robots Built . | . . Authchips . | . . Time . | . . Total Robot Build Rating . | . . Part Schematics Acquired . | . . Parts Built . | . . Authchips . | . . Time . | . . Total Part Build Rating . | . . Parts Repaired . | . . Time . | . . Parts Recycled . | . . Recycled Matter . | . . Retrieved Matter . | . . Retrieved Components . | . . Parts Scanalyzed . | . . Part Schematics Acquired . | . . Parts Damaged . | . . Bothacking | -11 -10 ------------ Run | Yrd Mat Used RIF Installer . | . . Robots Hacked . | . . Non-combat . | . . Combat . | . . Robot Hacks Applied . | . . Relay Couplers Released . | . . Fabnet Peak Effective % . | . . Robots Rewired . | . . Allies Hacked . | . . Hacks Repelled . | . . Allies | -11 -10 -------- Run | Yrd Mat Total Allies . | . . Largest Group . | . . Highest-Rated Group . | . . Highest-Rated Ally . | . . Total Orders . | . . Ally Attacks . | . . Total Damage . | . . Kills . | . . Allies Corrupted . | . . Allies Melted . | . . Intel | -11 -10 ------- Run | Yrd Mat Robot Analysis Total . | . . Derelict Logs Recovered . | . . Drone Launches . | . . Drone Recoveries . | . . Exploration | -11 -10 ------------- Run | Yrd Mat Turns Passed 398 | 44 354 Spaces Moved 316 | 39 277 Core 56 | 7 49 Treads . | . . Legs . | . . Wheels 260 | 32 228 Hover . | . . Flight . | . . Fastest Speed 50 | 50 80 Average Speed 95 | 82 97 Slowest Speed 200 | 100 200 Overloaded Moves . | . . Propulsion Burnouts . | . . Robots Hopped . | . . Cave-ins Triggered . | . . Exploration Rate (%) 34 | 3 66 Regions Visited 1 Branch Regions . Pre-discovered Areas . | . . Known Exits Taken . | . . Unknown Exits Taken 1 | 1 . Scrap Searched . | . . Spaces Dug . | . . Terrain Destroyed . | . . Melee . | . . Projectile . | . . AOE . | . . Terrain Rammed . | . . Walls Destroyed . | . . Machines Disabled . | . . Actions | -11 -10 --------- Run | Yrd Mat Total 369 | 47 322 Wait 14 | . 14 Move 315 | 38 277 Hop . | . . Pick Up 8 | 2 6 Fast Attach 7 | 6 1 Attach 2 | . 2 Detach . | . . Swap 2 | 1 1 Drop . | . . Fire 20 | . 20 Melee . | . . Ram 1 | . 1 Kick . | . . Crush . | . . Escape Stasis . | . . Rewire . | . . Trap . | . . Miscellaneous . | . . Route ------- -11/Scrapyard -10/Materials (discovered 2 exits: [*Mat] / [*Min]) History --------- Turn | Location | Event 22 | -11/Scrapyard | Discovered new exit (range 14) 45 | -11/Scrapyard | Entered Materials 140 | -10/Materials | Discovered new exit (range 4) 242 | -10/Materials | Discovered new exit (range 16) 282 | -10/Materials | Core integrity fell below 50% 300 | -10/Materials | Core integrity fell below 20% 305 | -10/Materials | Lost 5 parts (1p2n2w) 309 | -10/Materials | Build established: Mutant 399 | -10/Materials | Destroyed by G-34 Mercenary with Small Laser Last Messages --------------- 00317_ Integrated Corrupted Particle Gun (+2). 00317_ Complication: Energy sink damages Corrupted Particle Gun (-17). 00318_ K-01 Serf collects debris. 00318_ Acquired 10 matter. 00320_ K-01 Serf collects debris. 00328_ System corrupted: Energy discharge (-18). 00354_ Slammed into U-05 Engineer. 00359_ O-16 Technician: "IFF HANDSHAKE FAILED. SECURING TERMINAL." 00359_ O-16 Technician uses terminal to summon reinforcements. 00359_ ALERT: Hostiles spotted, dispatching reinforcements to Terminal M007. 00359_ O-16 Technician locks terminal. 00372_ Triggered Blade Trap. 00372_ Massive razor-sharp blades shoot up from within the floor. 00372_ Particle Gun severed. 00380_ U-05 Engineer lays Concrete. Map ----- +----------------------------------------------------+ | ?????????????????????????????????????????????????? | | ?????????????????????????????????????????????????? | | ?????????????????????????????????????????????????? | | ?????????????????????????????????????????????????? | | ?????????????????????????????????????????????????? | | ?????????????????????????????????????????????????? | | ????????????????????????????????????????????????? | | ????????????????????????????????????????????????? | | ?????????????????????????????????????????######## | | ?????????????????????????????????????????######## | | ?????????????????????????????????????????## # | | ???????????????????????????????? #### # | | ??????????????????????? ????????###+####### # | | ?????????????????????## ???????? # + " # | | ?????????????????????## ???????? # # # | | ?????????????????????## ????? + T # " # | | ?????????????????????## ????"""" # # "" # | | ?????????????????????## ???????? # # "" # | | ?????????????????????## # ?????? # ? # " # | | ?????????????????????## # ?????? # # " # | | ??????????????????##### ###??##### # + | | ??????????????????##### ############## # # | | ??????????????????## ##### g # #######[ | | ??????????????????## ! g % =%%* | | ??????????????????## < = ! | | ??????????????????## @ [% | | ??????????????????## #####" #######+# | | ??????????????????### ######" !"!?"## + | | ??????????????????### ###?##"""????## # | | ???????????????????## ##???????????## # | | ??????????????????### ###?########### # | | ??????????????????### ############### # | | ??????????????????## [##### #### ! + | | ??????????????????## ^ #### # ### | | ??????????????????## T [ % + # ### | | ??????????????????## #### # ### | | ??????????????????## ##### #### # ### | | ??????????????????####+####################### ### | | ?????????????????## ?#### | | ##########???????## """ ##?## # | | ##########???????## """ ##?## """ """ """% # | | ##???????## """ ##?## """ """ """ # | | ##???????## ##?## """ """ """ # | | /!! ##???????## """ ##?## # | | /! ##???????## """ ##?## # | | !! ##???????## ???? ##?## | | ##???????## ??? ##?## | | " " ##???????######???????## | | "R" ! ##???????######???????### | | """ ######################### | +----------------------------------------------------+ Best States ------------- Heat Dissipation 25 Energy Generation 10 Energy Capacity 125 Matter Stores 300 Matter Capacity 300 Sight Range 16 Terrain Scan Density 10 Evasion (%) 44 Item Schematics ----------------- None Robot Schematics ------------------ None Fabricated ------------ Nothing Alien Tech Used ----------------- None Achievements -------------- None Challenges ------------ None Game ------ Seed BiomechanicalTargetingScythe Manual? 0 Play Time 00:05:00 Cumulative 3.2 hours Start 2024.08.10 @ 23:07:11 End 2024.08.10 @ 23:11:36 Sessions 1 Manual Loads 0 Difficulty Rogue Special Mode None Game No. 9 Rogue 8 Adventurer 0 Explorer 1 Win Type - Total 0 Types 0/0/0/0/0/0/0/0/0 Lore% 6 Gallery% 8 Achievement% 8 Wizard Run 0 Options --------- Layout 2 ASCII 0 Keyboard 0 Movement Mouse Keybinds 0 Fullscreen 1 Font 32/Smallcaps Map View 50x44 Zoom Use 0% Tactical HUD 1 Map Filters NONE Filters NONE Steam 1 RUN: 5d840906-92ad-4b22-a153-9b3df13cfb9e